bitfinex-derivatives/quotes_BTCF0:USTF0_20250827
["timestamp","ask_amount","ask_price","bid_price","bid_amount"]
[1756314369429,0.146,112090.0,112080.0,1.75226091]
[1756314371229,0.08892,112090.0,112080.0,1.75226091]
[1756314372130,0.08792,112090.0,112080.0,1.75226091]
[1756314372336,0.06875,112090.0,112080.0,1.75226091]
[1756314372536,0.06775,112090.0,112080.0,1.75226091]
[1756314372938,0.06775,112090.0,112080.0,0.90578091]
[1756314373139,0.14421,112090.0,112080.0,1.77462091]
[1756314374741,0.14421,112090.0,112080.0,0.92822091]
[1756314374936,0.06775,112090.0,112080.0,1.77458091]
[1756314375140,0.04608,112090.0,112080.0,1.77458091]
[1756314375638,0.04608,112090.0,112080.0,0.92822091]
[1756314375942,0.2344179,112090.0,112080.0,1.77458091]
[1756314376641,0.14522,112090.0,112080.0,1.77458091]
[1756314377434,0.2011179,112090.0,112080.0,1.41374091]
[1756314377642,0.5952179,112090.0,112080.0,0.9758058]
[1756314377837,1.03315301,112090.0,112080.0,0.9579658]
[1756314378037,0.2319758,112080.0,112070.0,0.1294888]
[1756314378236,0.66991091,112080.0,112070.0,0.1294888]
[1756314378444,0.66991091,112080.0,112070.0,0.9757688]
[1756314379238,0.2319758,112080.0,112070.0,0.9757688]
[1756314379636,0.2319758,112080.0,112070.0,0.9757288]
[1756314380042,0.2319758,112080.0,112070.0,0.9767288]
[1756314381048,0.2349758,112080.0,112070.0,0.9757288]
[1756314381247,0.08756,112080.0,112070.0,1.41366391]
[1756314381446,0.003,112080.0,112070.0,1.41366391]
[1756314381637,0.003,112080.0,112070.0,2.02446391]
[1756314381837,0.005,112080.0,112070.0,2.02446391]
[1756314382543,0.004,112080.0,112070.0,2.02446391]
[1756314382744,0.02806,112090.0,112070.0,2.02446391]
[1756314382745,0.02806,112090.0,112080.0,0.1251858]
[1756314383047,0.48367344,112100.0,112080.0,0.91008091]
[1756314383048,0.43820884,112100.0,112080.0,0.91008091]
[1756314383248,0.46554563,112100.0,112090.0,1.38717301]
[1756314383448,0.46544563,112100.0,112090.0,1.38717301]
[1756314383646,0.45667679,112100.0,112090.0,1.38717301]
[1756314383844,0.43176679,112100.0,112090.0,1.38717301]
[1756314384044,0.43276679,112100.0,112090.0,1.38717301]
[1756314384243,0.40543,112100.0,112090.0,1.38717301]
[1756314384444,0.02896,112100.0,112090.0,1.38717301]
[1756314384748,0.02996,112100.0,112090.0,1.38717301]
[1756314384948,0.02996,112100.0,112090.0,1.74797301]
[1756314385743,0.02996,112100.0,112090.0,1.77007301]
[1756314386146,0.02896,112100.0,112090.0,1.77207301]
[1756314386545,0.2147099,112100.0,112090.0,1.77203301]
[1756314387749,0.2329599,112100.0,112090.0,1.77003301]
[1756314387949,0.2319599,112100.0,112090.0,1.77103301]
[1756314388444,0.2319599,112100.0,112090.0,0.92491301]
[1756314388646,0.2329599,112100.0,112090.0,1.41015301]
[1756314388954,0.2329599,112100.0,112090.0,0.9722179]
[1756314390551,0.5937599,112100.0,112090.0,0.1261779]
[1756314390851,0.5937599,112100.0,112090.0,0.9722179]
[1756314391555,0.5937599,112100.0,112090.0,0.1261779]
[1756314391851,0.5937599,112100.0,112090.0,0.9582979]
[1756314392047,1.03169501,112100.0,112090.0,0.9721379]
[1756314392752,1.28169501,112100.0,112090.0,0.9720979]
[1756314395843,1.28169501,112100.0,112090.0,0.9582579]
[1756314396046,1.28169501,112100.0,112090.0,0.9720979]
[1756314399159,1.28169501,112100.0,112090.0,0.0901979]
[1756314399354,1.28169501,112100.0,112090.0,0.001]
[1756314399555,1.30920119,112100.0,112090.0,0.001]
[1756314399757,2.30312119,112100.0,112090.0,0.001]
[1756314400063,0.2305958,112080.0,112070.0,0.84582]
[1756314400261,1.02933091,112080.0,112070.0,0.8817]
[1756314400558,1.02933091,112080.0,112070.0,0.9725038]
[1756314401156,0.5913958,112080.0,112070.0,0.9725038]
[1756314401359,0.5913958,112080.0,112070.0,0.9745038]
[1756314401554,0.5913958,112080.0,112070.0,0.88529]
[1756314401751,1.39013091,112080.0,112070.0,0.002]
[1756314402065,3.09943628,112080.0,112070.0,0.002]
[1756314402254,3.09943628,112080.0,112070.0,0.003]
[1756314402455,0.0892138,112070.0,112060.0,0.01778958]
[1756314402659,1.02933891,112070.0,112060.0,0.01778958]
[1756314403560,1.27933891,112070.0,112060.0,0.01778958]
[1756314404256,1.28233891,112070.0,112060.0,0.01778958]
[1756314404462,2.12797891,112070.0,112060.0,0.01778958]
[1756314404662,2.19925579,112070.0,112060.0,0.01778958]
[1756314405063,2.20125579,112070.0,112060.0,0.01778958]
[1756314405566,0.0892297,112050.0,112040.0,0.01394]
[1756314405863,0.2306277,112040.0,112030.0,1.3649206]
[1756314406051,0.2306277,112040.0,112030.0,0.05544]
[1756314406052,1.02936281,112040.0,112030.0,0.05544]
[1756314406256,1.02936281,112040.0,112030.0,0.0001]
[1756314406862,1.02936281,112040.0,112030.0,0.01394]
[1756314407262,1.02936281,112040.0,112030.0,0.1031856]
[1756314407458,1.02936281,112040.0,112030.0,0.1185956]
[1756314407661,1.02936281,112040.0,112030.0,0.02935]
[1756314408063,1.02936281,112040.0,112030.0,0.1185956]
[1756314408274,1.02936281,112040.0,112030.0,0.1585256]
[1756314409472,1.02936281,112040.0,112030.0,0.1649156]
[1756314409670,0.5914277,112040.0,112030.0,0.1649156]
[1756314410064,0.2306277,112040.0,112030.0,0.60285071]
[1756314410371,0.0848,112040.0,112030.0,0.85685071]
[1756314410564,0.1740377,112040.0,112030.0,0.85685071]
[1756314410766,0.2306277,112040.0,112030.0,0.85285071]
[1756314411178,0.06592,112040.0,112030.0,0.85685071]
[1756314411468,0.1882177,112040.0,112030.0,0.85685071]
[1756314411663,0.2070977,112040.0,112030.0,0.85685071]
[1756314411868,0.2306277,112040.0,112030.0,0.85685071]
[1756314412669,0.2306277,112040.0,112030.0,0.85285071]
[1756314413173,0.2306277,112040.0,112030.0,0.60285071]
[1756314413769,0.2306277,112040.0,112030.0,0.60685071]
[1756314415172,0.2306277,112040.0,112030.0,0.60285071]
[1756314416668,0.3788277,112040.0,112030.0,0.60285071]
[1756314416867,0.2306277,112040.0,112030.0,0.60685071]
[1756314417273,0.2306277,112040.0,112030.0,0.1689156]
[1756314417473,0.2306277,112040.0,112030.0,0.60685071]
[1756314417668,0.2306277,112040.0,112030.0,1.45233071]
[1756314417876,0.2306277,112040.0,112030.0,1.44833071]
[1756314418072,0.2306277,112040.0,112030.0,0.60285071]
[1756314418374,0.5914277,112040.0,112030.0,1.44829071]
[1756314418575,0.5914277,112040.0,112030.0,1.0103556]
[1756314419679,0.5914277,112040.0,112030.0,0.1649156]
[1756314420080,1.02936281,112040.0,112030.0,1.0103156]
[1756314423181,1.02936281,112040.0,112030.0,1.0102756]
[1756314423580,1.02936281,112040.0,112030.0,0.1510756]
[1756314423779,1.74464653,112040.0,112030.0,0.0001]
[1756314423984,1.30671145,112040.0,112030.0,0.0001]
[1756314424582,1.74464656,112040.0,112030.0,0.0001]
[1756314424776,0.1752836,112020.0,112010.0,2.1779858]
[1756314424969,0.61321871,112020.0,112010.0,3.0231658]
[1756314425170,0.61321871,112020.0,112010.0,1.3269658]
[1756314425679,0.1752836,112020.0,112010.0,1.3269658]
[1756314425874,0.1752836,112020.0,112010.0,1.3319658]
[1756314426284,0.1752836,112020.0,112010.0,1.76990091]
[1756314426671,0.1752836,112020.0,112010.0,1.3319658]
[1756314428181,0.20266792,112020.0,112010.0,1.3319658]
[1756314430672,0.05533432,112020.0,112010.0,1.77400091]
[1756314430982,0.05533432,112020.0,112010.0,2.02400091]
[1756314433582,0.05533432,112020.0,112010.0,1.17872091]
[1756314433783,0.05533432,112020.0,112010.0,2.02380091]
[1756314433984,0.11341432,112020.0,112010.0,2.02376091]
[1756314434380,0.20266792,112020.0,112010.0,2.02376091]
[1756314434582,0.11341432,112020.0,112010.0,2.02376091]
[1756314434782,0.05533432,112020.0,112010.0,2.02376091]
[1756314436680,0.05533432,112020.0,112010.0,2.02368091]
[1756314437085,0.25994792,112020.0,112010.0,1.0149416]
[1756314437286,0.69788303,112020.0,112010.0,1.0149416]
[1756314437681,0.69788303,112020.0,112010.0,1.45697671]
[1756314437682,0.17069432,112020.0,112010.0,1.45697671]
[1756314437882,0.25994792,112020.0,112010.0,1.45697671]
[1756314438686,0.25994792,112020.0,112010.0,1.0190416]
[1756314438887,0.25994792,112020.0,112010.0,1.45697671]
[1756314439281,0.25994792,112020.0,112010.0,1.45287671]
[1756314439482,0.25994792,112020.0,112010.0,0.60791671]
[1756314439677,0.25994792,112020.0,112010.0,1.45283671]
[1756314440389,0.69788303,112020.0,112010.0,1.0148216]
[1756314441688,1.05868303,112020.0,112010.0,0.06033]
[1756314441991,1.30868303,112020.0,112010.0,0.005]
[1756314443188,1.35674426,112020.0,112010.0,0.005]
[1756314443593,1.30868303,112020.0,112010.0,0.005]
[1756314443794,1.30868303,112020.0,112010.0,0.0051]
[1756314444190,0.0892696,112000.0,111990.0,0.8897236]
[1756314444392,1.05869903,112000.0,111990.0,0.1363036]
[1756314444592,0.0892775,111990.0,111980.0,0.19103111]
[1756314444795,0.69790693,111990.0,111980.0,1.03571111]
[1756314445091,0.69790693,111990.0,111980.0,0.19103111]
[1756314445292,0.69790693,111990.0,111980.0,1.03571111]
[1756314445488,0.69390693,111990.0,111980.0,1.03571111]
[1756314445695,0.68790693,111990.0,111980.0,1.03571111]
[1756314446093,1.04870693,111990.0,111980.0,0.08791111]
[1756314446291,1.04870693,111990.0,111980.0,0.02087111]
[1756314446493,1.04870693,111990.0,111980.0,0.02287111]
[1756314446688,1.34665705,111990.0,111980.0,0.02287111]
[1756314447497,1.36654207,111990.0,111980.0,0.005]
[1756314447797,0.92860696,111990.0,111980.0,0.005]
[1756314447993,1.36654207,111990.0,111980.0,0.0942855]
[1756314448198,1.36654207,111990.0,111980.0,0.005]
[1756314448393,1.37054207,111990.0,111980.0,0.003]
[1756314448791,1.37054207,111990.0,111980.0,0.001]
[1756314448995,1.37154207,111990.0,111980.0,0.001]
[1756314453203,1.32359195,111990.0,111980.0,0.001]
[1756314454509,1.32359195,111990.0,111980.0,0.0902855]
[1756314454710,1.32359195,111990.0,111980.0,0.001]
[1756314455212,0.88565684,111990.0,111980.0,0.001]
[1756314455411,1.32359195,111990.0,111980.0,0.001]
[1756314459610,2.16795195,111990.0,111980.0,0.001]
[1756314460410,1.91795195,111990.0,111980.0,0.001]
[1756314460809,0.63565684,111990.0,111980.0,0.001]
[1756314461013,1.91787195,111990.0,111980.0,0.001]
[1756314461514,2.06607195,111990.0,111980.0,0.001]
[1756314463420,1.62805684,111990.0,111980.0,0.001]
[1756314463722,2.06599195,111990.0,111980.0,0.001]
[1756314464019,2.06595195,111990.0,111980.0,0.001]
[1756314464416,1.47981684,111990.0,111980.0,0.1614855]
[1756314464616,1.07359195,111990.0,111980.0,0.1753255]
[1756314464812,0.52261934,111990.0,111980.0,0.87246061]
[1756314465024,0.55668934,111990.0,111980.0,0.87246061]
[1756314465215,0.05283502,111990.0,111980.0,1.71658061]
[1756314465610,0.05283502,111990.0,111980.0,2.07738061]
[1756314467822,0.05283502,111990.0,111980.0,2.07734061]
[1756314469123,0.02488502,111990.0,111980.0,2.41734061]
[1756314469726,0.02488502,111990.0,111980.0,1.57326061]
[1756314469916,0.05259502,111990.0,111980.0,2.07722061]
[1756314470923,0.02488502,111990.0,111980.0,2.07722061]
[1756314471117,0.005,111990.0,111980.0,2.39722061]
[1756314471322,0.0001,112000.0,111990.0,0.1705175]
[1756314471524,0.0478614,112010.0,112000.0,0.1705096]
[1756314471720,0.0477614,112010.0,112000.0,1.9151496]
[1756314471920,0.0477614,112010.0,112000.0,1.81308471]
[1756314472219,0.0200514,112010.0,112000.0,1.81308471]
[1756314472626,0.0200514,112010.0,112000.0,1.82205028]
[1756314473021,0.0200514,112010.0,112000.0,0.97821028]
[1756314473222,0.0230514,112010.0,112000.0,1.82301028]
[1756314474222,0.0507614,112010.0,112000.0,0.5323096]
[1756314474420,0.255493,112010.0,112000.0,1.0059896]
[1756314474828,0.256493,112010.0,112000.0,1.0059896]
[1756314475028,0.256493,112010.0,112000.0,1.0151896]
[1756314475321,0.256493,112010.0,112000.0,1.0151096]
[1756314475527,0.256493,112010.0,112000.0,0.1715096]
[1756314475826,0.256493,112010.0,112000.0,1.0151096]
[1756314477525,0.256493,112010.0,112000.0,0.1715096]
[1756314477727,0.256493,112010.0,112000.0,1.0150696]
[1756314478730,0.256493,112010.0,112000.0,1.0149896]
[1756314479123,0.256493,112010.0,112000.0,0.07304]
[1756314479329,0.94442811,112010.0,112000.0,0.9968695]
[1756314479529,0.94442811,112010.0,112000.0,1.0057095]
[1756314480628,0.1093014,112010.0,112000.0,1.45284461]
[1756314480828,0.1420014,112010.0,112000.0,1.45284461]
[1756314481028,0.1669014,112010.0,112000.0,1.45284461]
[1756314481533,0.1420014,112010.0,112000.0,1.45284461]
[1756314482028,0.1669014,112010.0,112000.0,1.45276461]
[1756314482236,0.1669014,112010.0,112000.0,1.45272461]
[1756314482427,0.256163,112010.0,112000.0,0.60024461]
[1756314482623,1.05489811,112010.0,112000.0,0.1623095]
[1756314482825,1.05489811,112010.0,112000.0,1.0055495]
[1756314483026,1.05489811,112010.0,112000.0,0.1623095]
[1756314483231,1.05489811,112010.0,112000.0,1.0055495]
[1756314483833,0.5277014,112010.0,112000.0,1.0055495]
[1756314484033,0.5277014,112010.0,112000.0,0.1623095]
[1756314484226,0.5277014,112010.0,112000.0,1.0055495]
[1756314484433,0.5277014,112010.0,112000.0,1.0054695]
[1756314485636,0.5277014,112010.0,112000.0,1.0146695]
[1756314486136,0.1669014,112010.0,112000.0,1.45260461]
[1756314486842,0.1669014,112010.0,112000.0,0.1715095]
[1756314487135,0.69409811,112010.0,112000.0,1.0053895]
[1756314487433,0.69409811,112010.0,112000.0,0.9965495]
[1756314487632,0.69409811,112010.0,112000.0,1.0053895]
[1756314488137,1.05489811,112010.0,112000.0,1.0053495]
[1756314489135,1.05489811,112010.0,112000.0,0.1623095]
[1756314489336,1.05489811,112010.0,112000.0,1.0052695]
[1756314489835,1.30489811,112010.0,112000.0,0.03535]
[1756314490038,1.30489811,112010.0,112000.0,0.001]
[1756314490340,1.30489811,112010.0,111990.0,0.0001]
[1756314490341,0.2311196,112000.0,111990.0,0.0001]
[1756314490540,0.2311275,111990.0,111980.0,1.00934885]
[1756314490742,1.02986261,111990.0,111980.0,1.00924885]
[1756314491341,0.5919275,111990.0,111980.0,1.00924885]
[1756314491539,0.57978511,111990.0,111980.0,1.00924885]
[1756314491845,0.66906261,111990.0,111980.0,1.01024885]
[1756314492236,1.02986261,111990.0,111980.0,1.01024885]
[1756314492836,0.5919275,111990.0,111980.0,1.01944885]
[1756314493141,1.02986261,111990.0,111980.0,1.01024885]
[1756314493343,0.5929275,111990.0,111980.0,1.00924885]
[1756314493539,1.03086261,111990.0,111980.0,0.99940885]
[1756314493839,1.04069295,111990.0,111980.0,1.00924885]
[1756314496143,0.60275784,111990.0,111980.0,1.01844885]
[1756314497744,0.45588034,111990.0,111980.0,1.45638396]
[1756314498054,0.09508034,111990.0,111980.0,1.81718396]
[1756314498446,0.12778034,111990.0,111980.0,1.81718396]
[1756314498646,0.15268034,111990.0,111980.0,1.81718396]
[1756314498945,0.15268034,111990.0,111980.0,1.37924885]
[1756314499149,0.24195784,111990.0,111980.0,1.81718396]
[1756314499450,0.15268034,111990.0,111980.0,1.81718396]
[1756314499639,0.06781,111990.0,111980.0,1.81718396]
[1756314499835,0.06781,111990.0,111980.0,2.06718396]
[1756314499836,0.002,111990.0,111980.0,2.06718396]
[1756314500948,0.03067,111990.0,111980.0,2.06694396]
[1756314502344,0.002,111990.0,111980.0,2.06694396]
[1756314503149,0.002,111990.0,111980.0,1.22426396]
[1756314503448,0.03067,111990.0,111980.0,2.06686396]
[1756314503841,0.03067,111990.0,111980.0,1.22426396]
[1756314504243,0.2331275,111990.0,111980.0,1.23897396]
[1756314504443,0.2331275,111990.0,111980.0,2.08153396]
[1756314504651,0.2331275,111990.0,111980.0,2.07233396]
[1756314504955,0.2331275,111990.0,111980.0,1.03279885]
[1756314505853,0.14385,111990.0,111980.0,1.03279885]
[1756314506741,0.06781,111990.0,111980.0,1.83153396]
[1756314508048,0.06781,111990.0,111980.0,0.98897396]
[1756314508257,0.2331275,111990.0,111980.0,1.03267885]
[1756314508456,0.2331275,111990.0,111980.0,1.02347885]
[1756314508756,0.2331275,111990.0,111980.0,0.18103885]
[1756314508955,0.2331275,111990.0,111980.0,1.02347885]
[1756314509553,0.2331275,111990.0,111980.0,1.03267885]
[1756314510760,0.2331275,111990.0,111980.0,1.02347885]
[1756314510959,0.67106261,111990.0,111980.0,1.02335885]
[1756314511855,0.67106261,111990.0,111980.0,1.0052755]
[1756314512962,0.2331275,111990.0,111980.0,1.0052755]
[1756314513555,0.12436,111990.0,111980.0,1.45241061]
[1756314513860,0.12436,111990.0,111980.0,1.45233061]
[1756314514359,0.12436,111990.0,111980.0,0.61009061]
[1756314514557,0.03067,111990.0,111980.0,1.45229061]
[1756314515059,0.03067,111990.0,111980.0,1.81309061]
[1756314515562,0.03067,111990.0,111980.0,1.3751155]
[1756314515773,0.03067,111990.0,111980.0,1.81305061]
[1756314515957,0.03067,111990.0,111980.0,0.97089061]
[1756314516157,0.1199475,111990.0,111980.0,1.81301061]
[1756314516565,0.03067,111990.0,111980.0,1.81301061]
[1756314516758,0.002,111990.0,111980.0,0.97089061]
[1756314516962,0.0296,111990.0,111980.0,1.81301061]
[1756314518081,0.2310175,111990.0,111980.0,1.81301061]
[1756314518867,0.2310175,111990.0,111980.0,0.97089061]
[1756314519067,0.2310175,111990.0,111980.0,1.3749955]
[1756314519660,0.66895261,111990.0,111980.0,1.3559555]
[1756314519968,0.66895261,111990.0,111980.0,1.0049955]
[1756314520269,0.66895261,111990.0,111980.0,1.0141955]
[1756314520466,0.66895261,111990.0,111980.0,1.0049955]
[1756314520772,0.66895261,111990.0,111980.0,1.0049555]
[1756314521070,0.66895261,111990.0,111980.0,0.1629555]
[1756314521271,0.66895261,111990.0,111980.0,1.0049155]
[1756314521466,0.2310175,111990.0,111980.0,1.0049155]
[1756314521666,0.66895261,111990.0,111980.0,1.0048755]
[1756314522569,0.91895261,111990.0,111980.0,1.0048755]
[1756314522766,0.91895261,111990.0,111980.0,0.9901655]
[1756314522965,0.91895261,111990.0,111980.0,0.1384055]
[1756314523172,0.91895261,111990.0,111980.0,0.9901255]
[1756314523473,0.91895261,111990.0,111980.0,1.0048355]
[1756314523771,0.14174,111990.0,111980.0,1.0140355]
[1756314523970,0.2310175,111990.0,111980.0,1.0140355]
[1756314524166,0.14174,111990.0,111980.0,1.45197061]
[1756314524363,0.0296,111990.0,111980.0,1.45197061]
[1756314524569,0.0296,111990.0,111980.0,1.81277061]
[1756314525271,0.08615,111990.0,111980.0,1.81277061]
[1756314525667,0.0296,111990.0,111980.0,1.81277061]
[1756314525868,0.002,111990.0,111980.0,2.06277061]
[1756314526074,0.0296,111990.0,111980.0,2.06277061]
[1756314526473,0.0296,111990.0,111980.0,1.6248355]
[1756314526672,0.0296,111990.0,111980.0,2.06277061]
[1756314526867,0.0296,111990.0,111980.0,1.22089061]
[1756314527073,0.1188775,111990.0,111980.0,2.06261061]
[1756314528170,0.1744675,111990.0,111980.0,0.7829555]
[1756314528369,0.2310175,111990.0,111980.0,1.2638355]
[1756314531277,0.2310175,111990.0,111980.0,1.0137155]
[1756314531777,0.91895261,111990.0,111980.0,0.9946755]
[1756314531975,0.91895261,111990.0,111980.0,1.0045155]
[1756314532176,1.27975261,111990.0,111980.0,1.0045155]
[1756314533078,1.02975261,111990.0,111980.0,1.0045155]
[1756314535376,1.02975261,111990.0,111980.0,1.0043955]
[1756314536483,0.5918175,111990.0,111980.0,1.0043955]
[1756314536776,0.5918175,111990.0,111980.0,1.81233061]
[1756314536777,0.0296,111990.0,111980.0,1.81233061]
[1756314539783,0.1188775,111990.0,111980.0,1.81233061]
[1756314542581,0.2304375,111990.0,111980.0,1.45125061]
[1756314542777,1.27917261,111990.0,111980.0,0.91479]
[1756314542982,1.27917261,111990.0,111980.0,0.89024]
[1756314543184,0.1447755,111980.0,111970.0,1.0044231]
[1756314543378,0.2295355,111980.0,111970.0,1.0043231]
[1756314543583,0.91747061,111980.0,111970.0,1.0042831]
[1756314544482,0.66747061,111980.0,111970.0,1.0134831]
[1756314544679,0.66747061,111980.0,111970.0,1.0042831]
[1756314545587,0.66747061,111980.0,111970.0,1.0052831]
[1756314545784,0.91747061,111980.0,111970.0,0.06507]
[1756314545982,1.27827061,111980.0,111970.0,0.91591]
[1756314546177,1.28027061,111980.0,111970.0,0.91491]
[1756314546385,1.28027061,111980.0,111970.0,1.0042035]
[1756314546689,1.28227061,111980.0,111970.0,0.9894935]
[1756314547389,1.28227061,111980.0,111970.0,0.0592]
[1756314547589,1.28227061,111980.0,111970.0,0.01583]
[1756314547792,0.2295435,111970.0,111960.0,1.00733349]
[1756314547992,1.02827861,111970.0,111960.0,1.00723349]
[1756314549392,0.47686,111970.0,111960.0,1.01643349]
[1756314549591,0.50205,111970.0,111960.0,1.01643349]
[1756314549896,0.50205,111970.0,111960.0,1.4543686]
[1756314550386,0.5913435,111970.0,111960.0,1.4543686]
[1756314550587,0.50205,111970.0,111960.0,1.4543686]
[1756314551282,0.5913435,111970.0,111960.0,1.4543686]
[1756314551590,0.5913435,111970.0,111960.0,1.01643349]
[1756314551993,0.5671535,111970.0,111960.0,1.01643349]
[1756314552194,0.5913435,111970.0,111960.0,1.01643349]
[1756314554689,0.46996,111970.0,111960.0,1.01643349]
[1756314554888,0.02948,111970.0,111960.0,2.0651686]
[1756314555084,0.001,111970.0,111960.0,2.6651686]
[1756314555794,0.0001,111980.0,111970.0,0.1698035]
[1756314555995,1.5,111980.0,111970.0,0.96853861]
[1756314556183,1.5,111980.0,111970.0,1.31853861]
[1756314556390,0.1548775,111990.0,111980.0,0.1468155]
[1756314556589,0.2110575,111990.0,111980.0,1.78623061]
[1756314556999,0.09759,111990.0,111980.0,1.78623061]
[1756314557197,0.0655,111990.0,111980.0,1.78623061]
[1756314557491,0.2295275,111990.0,111980.0,0.94555061]
[1756314557697,0.2295275,111990.0,111980.0,0.5076155]
[1756314557892,0.2325275,111990.0,111980.0,1.3390555]
[1756314558101,0.0685,111990.0,111980.0,1.3482555]
[1756314558300,0.1577775,111990.0,111980.0,1.3482555]
[1756314558593,0.1577775,111990.0,111980.0,2.39619061]
[1756314558594,0.006,111990.0,111980.0,2.39619061]
[1756314559003,0.006,111990.0,111980.0,2.03615061]
[1756314559191,0.006,111990.0,111980.0,2.35615061]
[1756314559192,0.003,111990.0,111980.0,2.35615061]
[1756314559505,0.02008452,112000.0,111990.0,0.1438075]
[1756314559696,0.02858,112010.0,112000.0,0.1198096]
[1756314559900,0.02848,112010.0,112000.0,1.42229471]
[1756314560295,0.07205356,112020.0,112010.0,0.1437916]
[1756314560597,0.05688356,112020.0,112010.0,0.58172671]
[1756314560799,0.05688356,112020.0,112010.0,0.94252671]
[1756314560998,0.02840356,112020.0,112010.0,0.94252671]
[1756314561201,0.01961185,112020.0,112010.0,0.94252671]
[1756314561597,0.04809185,112020.0,112010.0,1.78296671]
[1756314562505,0.04909185,112020.0,112010.0,1.78296671]
[1756314562704,0.04909185,112020.0,112010.0,0.5045916]
[1756314562902,0.04909185,112020.0,112010.0,0.94352671]
[1756314563106,0.14239185,112020.0,112010.0,1.78392671]
[1756314563307,0.14239185,112020.0,112010.0,1.3459516]
[1756314563997,0.14239185,112020.0,112010.0,0.5055916]
[1756314563998,0.08611185,112020.0,112010.0,0.5055916]
[1756314564197,0.11820185,112020.0,112010.0,1.78380671]
[1756314565507,0.16086185,112020.0,112010.0,1.78376671]
[1756314565905,0.68805056,112020.0,112010.0,0.1355916]
[1756314566210,0.68805056,112020.0,112010.0,1.3365516]
[1756314566810,0.04909185,112020.0,112010.0,1.78368671]
[1756314567210,0.14239185,112020.0,112010.0,1.78364671]
[1756314567405,0.11820185,112020.0,112010.0,1.78364671]
[1756314567613,0.04909185,112020.0,112010.0,1.78364671]
[1756314568606,0.04909185,112020.0,112010.0,0.94352671]
[1756314568812,0.16174185,112020.0,112010.0,1.78352671]
[1756314569012,0.16174185,112020.0,112010.0,0.93432671]
[1756314569212,0.16174185,112020.0,112010.0,1.3363916]
[1756314569512,0.10458185,112020.0,112010.0,1.3455916]
[1756314569707,0.08611185,112020.0,112010.0,1.3455916]
[1756314569911,0.11843185,112020.0,112010.0,1.3455916]
[1756314570216,0.11843185,112020.0,112010.0,1.78352671]
[1756314570719,0.11843185,112020.0,112010.0,1.42272671]
[1756314571112,0.04909185,112020.0,112010.0,1.42272671]
[1756314571314,0.04909185,112020.0,112010.0,1.78352671]
[1756314571514,0.02061185,112020.0,112010.0,1.78352671]
[1756314571814,0.04837185,112020.0,112010.0,1.3455916]
[1756314572013,0.11775185,112020.0,112010.0,1.78340671]
[1756314572210,0.14259185,112020.0,112010.0,1.78340671]
[1756314572409,0.14259185,112020.0,112010.0,1.42260671]
[1756314573717,0.14259185,112020.0,112010.0,0.58272671]
[1756314573718,0.08543185,112020.0,112010.0,0.58272671]
[1756314573921,0.14259185,112020.0,112010.0,1.42248671]
[1756314574518,0.14259185,112020.0,112010.0,1.49516554]
[1756314575211,0.16174185,112020.0,112010.0,1.49512554]
[1756314575411,0.04837185,112020.0,112010.0,1.49512554]
[1756314575712,0.04837185,112020.0,112010.0,0.65540554]
[1756314576016,0.09663185,112020.0,112010.0,1.49508554]
[1756314576216,0.65661036,112020.0,112010.0,0.9844316]
[1756314576513,0.54251696,112020.0,112010.0,0.9844316]
[1756314576706,0.04837185,112020.0,112010.0,0.9844316]
[1756314577110,0.25099525,112020.0,112010.0,0.58272671]
[1756314577318,0.25099525,112020.0,112010.0,1.42232671]
[1756314577815,0.25099525,112020.0,112010.0,0.9751916]
[1756314578219,0.61179525,112020.0,112010.0,0.9751916]
[1756314578514,1.04973036,112020.0,112010.0,0.9751916]
[1756314578907,1.04973036,112020.0,112010.0,0.9843916]
[1756314579111,0.61179525,112020.0,112010.0,0.9843916]
[1756314579711,0.61179525,112020.0,112010.0,0.1447916]
[1756314579917,0.61179525,112020.0,112010.0,0.9751116]
[1756314580116,0.61179525,112020.0,112010.0,0.9843116]
[1756314580314,0.16174185,112020.0,112010.0,0.9843116]
[1756314580509,0.001,112020.0,112010.0,1.78304671]
[1756314580711,0.0001,112030.0,112020.0,0.1408534]
[1756314580916,0.06492,112040.0,112030.0,0.1408455]
[1756314581118,0.02776,112040.0,112030.0,1.77906061]
[1756314581720,0.02776,112040.0,112030.0,1.3328855]
[1756314581721,0.2303675,112040.0,112030.0,1.3328855]
[1756314581909,1.02910261,112040.0,112030.0,0.9720855]
[1756314582312,0.5911675,112040.0,112030.0,0.9720855]
[1756314582508,0.5941675,112040.0,112030.0,0.9802855]
[1756314583417,0.39156,112040.0,112030.0,1.41822061]
[1756314583720,0.03076,112040.0,112030.0,1.77902061]
[1756314584111,0.02776,112040.0,112030.0,1.77902061]
[1756314584311,0.03276,112040.0,112030.0,1.77902061]
[1756314585309,0.03076,112040.0,112030.0,1.77902061]
[1756314585522,0.06308,112040.0,112030.0,1.77902061]
[1756314585712,0.06108,112040.0,112030.0,1.77902061]
[1756314586018,0.08592,112040.0,112030.0,1.77902061]
[1756314586413,0.06108,112040.0,112030.0,1.77902061]
[1756314586616,0.02876,112040.0,112030.0,1.77902061]
[1756314587010,0.09814,112040.0,112030.0,1.77882061]
[1756314587514,0.1254646,112040.0,112030.0,1.77882061]
[1756314588015,0.2586921,112040.0,112030.0,1.3326855]
[1756314588216,0.69662721,112040.0,112030.0,1.3408855]
[1756314588422,0.2586921,112040.0,112030.0,1.3408855]
[1756314589320,0.0283246,112040.0,112030.0,1.77882061]
[1756314590021,0.001,112040.0,112030.0,1.77882061]
[1756314590417,0.001,112040.0,112030.0,2.30882061]
[1756314590612,0.001,112040.0,112030.0,2.02882061]
[1756314591215,0.02876,112040.0,112030.0,2.02882061]
[1756314591423,0.02876,112040.0,112030.0,1.77870061]
[1756314591621,0.66930261,112040.0,112030.0,0.5016455]
[1756314591819,0.60741942,112040.0,112030.0,1.3407255]
[1756314592020,0.02835431,112040.0,112030.0,1.77866061]
[1756314592323,0.05611437,112040.0,112030.0,1.77866061]
[1756314593524,0.05611437,112040.0,112030.0,1.3407255]
[1756314593724,0.05611437,112040.0,112030.0,1.77862061]
[1756314593920,0.08843437,112040.0,112030.0,1.77862061]
[1756314595121,0.21473187,112040.0,112030.0,0.93958061]
[1756314595321,0.16948437,112040.0,112030.0,1.77858061]
[1756314596425,0.25872187,112040.0,112030.0,0.93958061]
[1756314596623,0.25872187,112040.0,112030.0,1.77854061]
[1756314596830,0.16948437,112040.0,112030.0,1.77854061]
[1756314597028,0.02835437,112040.0,112030.0,1.77854061]
[1756314597429,0.05611437,112040.0,112030.0,1.77854061]
[1756314598730,0.05611437,112040.0,112030.0,0.93958061]
[1756314598930,0.05611437,112040.0,112030.0,1.77846061]
[1756314599632,0.05611437,112040.0,112030.0,1.3405255]
[1756314599829,0.05611437,112040.0,112030.0,1.77846061]
[1756314600432,0.26031177,112040.0,112030.0,0.9796855]
[1756314600632,0.26031177,112040.0,112030.0,0.9714455]